bitfinex/quotes_ETHUSD_20250413
["timestamp","ask_amount","ask_price","bid_price","bid_amount"]
[1744509726119,1.0379,1618.3,1617.4,7.2509]
[1744509726120,6.18051,1618.0,1617.4,1.1809]
[1744509726307,6.18208,1617.6,1617.4,1.1809]
[1744509727317,6.18144,1617.8,1617.4,1.1809]
[1744509727510,12.36294,1617.8,1617.4,1.1809]
[1744509727842,6.18161,1617.7,1617.4,1.1809]
[1744509728031,6.18144,1617.8,1617.4,1.1809]
[1744509728744,6.18144,1617.8,1617.4,7.36352]
[1744509728943,13.39988,1617.9,1617.4,8.09472025]
[1744509729543,6.18086,1617.9,1617.4,14.27734025]
[1744509729752,6.18086,1617.9,1617.4,8.09472025]
[1744509730107,6.18085,1617.9,1617.4,1.1809]
[1744509730513,12.36272,1617.8,1617.4,1.1809]
[1744509730726,6.18238,1617.5,1617.1,7.42696]
[1744509730959,6.1828,1617.4,1617.1,1.2431]
[1744509731139,6.18328,1617.3,1617.1,1.2431]
[1744509731338,6.18278,1617.4,1617.1,1.2431]
[1744509731844,12.36581,1617.4,1617.1,1.2431]
[1744509732030,6.18352,1617.2,1617.1,1.2431]
[1744509732214,6.18199,1617.6,1617.1,1.2431]
[1744509732418,6.18244,1617.5,1617.1,13.5717396]
[1744509732811,1.0379,1617.7,1617.1,1.2431]
[1744509733017,6.18332,1617.3,1617.0,256.88332145]
[1744509733213,6.1822,1617.6,1617.2,6.18327]
[1744509733432,6.18163,1617.7,1617.3,1.2431]
[1744509733635,12.36357,1617.7,1617.3,1.2431]
[1744509733847,6.18163,1617.7,1617.3,1.2431]
[1744509734056,12.36349,1617.7,1617.3,1.2431]
[1744509734362,6.18284,1617.4,1617.0,264.31062145]
[1744509734853,6.18203,1617.6,1617.2,6.18352]
[1744509735020,6.18294,1617.4,1617.0,264.31066145]
[1744509735838,6.18241,1617.5,1617.1,6.18377]
[1744509736019,6.18241,1617.5,1617.0,264.31066145]
[1744509736020,12.36502,1617.5,1617.0,264.31066145]
[1744509736229,6.18276,1617.4,1617.0,270.45562105]
[1744509737373,6.1839,1617.1,1617.0,256.88332145]
[1744509737525,6.18276,1617.4,1617.0,256.88332145]
[1744509737852,6.18317,1617.3,1617.0,256.88332145]
[1744509739058,6.18276,1617.4,1617.0,256.88332145]
[1744509740122,6.18202,1617.6,1617.2,6.1835]
[1744509740953,6.18238,1617.5,1617.0,256.88332145]
[1744509741168,6.18345,1617.3,1617.0,256.88332145]
[1744509741868,6.1839,1617.1,1617.0,256.88332145]
[1744509742248,6.18368,1617.2,1617.0,256.88332145]
[1744509742453,6.1839,1617.1,1617.0,256.88332145]
[1744509744890,7.1499,1617.1,1617.0,256.88332145]
[1744509745239,10.1499,1617.1,1617.0,256.88332145]
[1744509746182,10.8499,1617.1,1617.0,256.88332145]
[1744509749293,6.18524,1616.8,1616.5,1.2431]
[1744509749642,6.18551,1616.7,1616.5,1.2431]
[1744509750344,6.18524,1616.8,1616.5,1.2431]
[1744509750680,12.37052,1616.8,1616.5,1.2431]
[1744509751208,10.84995,1617.1,1616.4,8.164]
[1744509751209,6.18566,1616.7,1616.4,8.164]
[1744509751520,0.966,1616.7,1616.1,1.1859]
[1744509751700,7.15156,1616.7,1616.2,6.18719]
[1744509751904,6.18599,1616.6,1616.2,6.18719]
[1744509752120,6.18624,1616.5,1616.1,1.1859]
[1744509752283,12.3738,1616.4,1616.1,1.1859]
[1744509752623,6.18717,1616.3,1616.0,8.166]
[1744509752777,6.18689,1616.4,1616.0,14.35403]
[1744509753204,12.3737,1616.4,1616.0,14.35403]
[1744509753776,6.187,1616.3,1616.0,8.166]
[1744509754189,6.18681,1616.4,1616.0,14.35407]
[1744509754875,6.18593,1616.6,1616.1,6.18754]
[1744509755076,6.18593,1616.6,1616.1,6.18773]
[1744509755407,12.2952,1616.8,1616.4,6.1864]
[1744509755608,10.15072,1616.9,1616.5,6.18611]
[1744509755906,6.18431,1617.0,1616.6,7.46716]
[1744509755907,12.36888,1617.0,1616.6,7.46716]
[1744509756102,3.0,1616.9,1616.6,7.46716]
[1744509756309,7.881,1617.1,1616.8,6.1849]
[1744509756909,7.14889,1617.4,1617.0,6.18412]
[1744509757209,6.18289,1617.4,1617.0,7.46547]
[1744509757610,60.915,1617.6,1617.3,6.18295]
[1744509757912,6.18162,1617.7,1617.3,6.18295]
[1744509758113,6.18216,1617.6,1617.2,6.18351]
[1744509758410,6.18216,1617.6,1617.2,12.36688]
[1744509758709,0.7,1617.6,1617.1,1.2814]
[1744509758885,6.17986,1618.2,1617.7,6.18132]
[1744509759399,6.18112,1617.9,1617.5,1.2814]
[1744509759707,6.17971,1618.2,1617.7,12.36284]
[1744509759884,9.17971,1618.2,1617.7,12.36284]
[1744509760407,6.18116,1617.9,1617.5,7.46375]
[1744509760608,56.43774203,1618.3,1617.5,1.2814]
[1744509760800,9.17988,1618.2,1617.5,1.2814]
[1744509761301,3.0,1618.1,1617.5,1.2814]
[1744509761702,9.1801,1618.1,1617.6,6.1818]
[1744509762296,9.1801,1618.1,1617.7,6.18144]
[1744509762496,0.966,1618.3,1617.6,0.74632]
[1744509762697,10.49247425,1618.4,1618.0,6.18025]
[1744509762898,6.17932,1618.3,1617.9,6.18081]
[1744509763114,14.07996,1618.4,1618.0,6.18046]
[1744509763707,0.02,1618.4,1618.2,7.34785]
[1744509764413,0.02,1618.4,1617.9,6.18083]
[1744509764582,0.02,1618.4,1617.9,1.1684]
[1744509764782,0.02,1618.4,1618.1,6.17988]
[1744509765589,6.819115,1618.4,1617.9,7.34921]
[1744509765798,6.17941,1618.3,1617.9,7.34921]
[1744509766016,6.819115,1618.4,1617.9,7.34921]
[1744509766017,0.02,1618.4,1617.9,1.1684]
[1744509766198,0.02,1618.4,1618.2,6.17951]
[1744509766513,0.02,1618.4,1618.1,6.18005]
[1744509766719,6.19908,1618.4,1618.0,6.18046]
[1744509766918,12.37834,1618.4,1618.0,6.18046]
[1744509767082,13.615224,1618.4,1618.0,6.18046]
[1744509767283,6.17986,1618.2,1617.9,1.1684]
[1744509767920,6.1797,1618.2,1617.9,7.34924]
[1744509768119,6.17932,1618.3,1617.9,7.34924]
[1744509769721,12.35889,1618.3,1617.9,7.34924]
[1744509770021,6.17932,1618.3,1617.9,7.34924]
[1744509770821,12.3589,1618.3,1617.9,7.34924]
[1744509771045,6.18099,1617.9,1617.5,12.25221]
[1744509771187,6.18099,1617.9,1617.4,7.35632]
[1744509771494,6.18099,1617.9,1617.5,0.735632]
[1744509772099,6.18029,1618.1,1617.5,0.735632]
[1744509772290,3.966,1618.2,1617.6,6.18185]
[1744509772291,6.18086,1617.9,1617.6,6.18185]
[1744509772489,12.36202,1617.9,1617.5,6.18238]
[1744509772691,6.18086,1617.9,1617.5,6.18238]
[1744509773216,10.14571,1618.2,1617.4,1.1737]
[1744509773217,3.0,1618.2,1617.4,1.1737]
[1744509773412,9.17985,1618.2,1617.9,1.1737]
[1744509773722,0.02,1618.4,1618.1,6.17994]
[1744509773915,0.02,1618.4,1618.0,6.18043]
[1744509774116,6.19908,1618.4,1618.0,12.36072]
[1744509774431,6.17973,1618.2,1617.9,8.089966]
[1744509774859,6.17955,1618.3,1617.9,8.089876]
[1744509775037,6.17955,1618.3,1618.0,6.18046]
[1744509775198,12.35913,1618.3,1617.9,8.089876]
[1744509775406,12.36045,1618.1,1617.7,7.35519]
[1744509775836,6.18063,1618.0,1617.6,6.18196]
[1744509776054,6.18063,1618.0,1617.6,12.36376]
[1744509776341,6.18013,1618.1,1617.7,6.18147]
[1744509777496,6.18067,1618.0,1617.6,6.18195]
[1744509777897,6.18067,1618.0,1617.6,12.36374]
[1744509778199,6.18067,1618.0,1617.6,6.18179]
[1744509778628,12.36136,1618.0,1617.6,6.18179]
[1744509779128,17.43648203,1618.2,1617.5,1.2029]
[1744509779328,6.18136,1617.8,1617.5,1.2029]
[1744509779624,6.18046,1618.0,1617.5,13.56756]
[1744509779831,6.181,1617.9,1617.5,13.56756]
[1744509779997,12.36209,1617.9,1617.5,7.38523]
[1744509780197,12.36209,1617.9,1617.5,8.742024]
[1744509780399,9.18029,1618.1,1617.7,6.18153]
[1744509780629,15.36065,1618.1,1617.7,6.18153]
[1744509780834,12.36115,1618.0,1617.6,6.18185]
[1744509781004,12.36228,1617.9,1617.5,8.742054]
[1744509781207,6.1815,1617.8,1617.5,2.559694]
[1744509781407,6.1815,1617.8,1617.5,1.2029]
[1744509781608,6.18089,1617.9,1617.0,8.49074203]
[1744509781609,3.961,1617.9,1617.3,1.2339]
[1744509781805,6.1835,1617.3,1617.0,1.2339]
[1744509782119,6.18363,1617.2,1617.0,1.2339]
[1744509783154,6.1835,1617.3,1617.0,1.2339]
[1744509783302,6.1834,1617.3,1617.0,1.2339]
[1744509783615,6.18354,1617.2,1617.0,1.2339]
[1744509783936,6.1839,1617.1,1616.9,7.875]
[1744509784099,6.18553,1616.7,1616.5,7.636]
[1744509784306,6.18583,1616.6,1616.4,1.2339]
[1744509784613,6.18639,1616.5,1616.1,1.2339]
[1744509784806,6.18608,1616.6,1616.2,6.18734]
[1744509785133,3.961,1616.8,1616.1,1.976079]
[1744509785134,12.37359,1616.4,1616.1,1.976079]
[1744509785324,6.1862,1616.6,1616.1,7.42131]
[1744509785534,6.18674,1616.4,1616.1,1.2339]
[1744509785701,6.18543,1616.7,1615.9,6.18849]
[1744509785702,6.1872,1616.3,1615.9,6.18849]
[1744509785907,6.18793,1616.1,1615.8,6.60787122]
[1744509786106,6.18829,1616.0,1615.8,6.60787122]
[1744509786551,6.18829,1616.0,1615.6,7.43723]
[1744509786837,6.18793,1616.1,1615.6,7.43723]
[1744509787007,6.18913,1615.8,1615.3,6.19078]
[1744509787339,6.18943,1615.7,1615.3,6.19078]
[1744509787539,6.18943,1615.7,1615.3,6.19063]
[1744509787746,6.18943,1615.7,1615.3,12.38127]
[1744509788039,0.961,1616.0,1615.6,6.18935]
[1744509788242,0.961,1616.0,1615.5,6.18984]
[1744509788243,7.638,1616.1,1615.8,6.18873]
[1744509788550,6.18737,1616.2,1615.8,6.18873]
[1744509788920,3.961,1616.3,1615.9,6.18816]
[1744509789242,6.18783,1616.1,1615.7,1.2479]
[1744509789431,6.18814,1616.0,1615.6,6.18956]
[1744509789612,7.14883,1616.1,1615.6,12.37896]
[1744509789809,6.18737,1616.2,1615.7,6.18901]
[1744509790039,12.37504,1616.2,1615.7,12.37811]
[1744509790234,6.18782,1616.1,1615.7,6.18901]
[1744509790942,0.961,1616.4,1616.0,6.18808]
[1744509791174,7.1479,1616.4,1616.0,6.18808]
[1744509791467,7.1479,1616.4,1616.0,12.37603]
[1744509791963,0.961,1616.6,1616.3,6.18675]
[1744509792111,6.18546,1616.7,1616.3,12.37355]
[1744509792310,6.18538,1616.8,1616.4,6.18642]
[1744509792535,8.601,1616.9,1616.2,1.2591]
[1744509792758,8.60409203,1617.3,1616.7,6.18528]
[1744509792759,7.14495,1617.1,1616.7,6.18528]
[1744509792959,6.18354,1617.2,1616.8,12.36983]
[1744509793115,6.18335,1617.3,1616.9,6.18465]
[1744509793512,0.961,1617.4,1617.0,6.18427]
[1744509793736,3.961,1617.4,1617.0,6.18427]
[1744509794546,13.82241,1617.5,1617.0,6.18404]
[1744509794720,7.64,1617.5,1617.1,6.18376]
[1744509794934,13.82238,1617.5,1617.1,6.18376]
[1744509795120,6.18278,1617.4,1616.9,6.18439]
[1744509795326,6.18278,1617.4,1617.0,6.18427]
[1744509795523,20.00508,1617.5,1617.0,6.18407]
[1744509795727,6.18337,1617.3,1616.8,6.18503]
[1744509796112,12.36738,1617.2,1616.8,6.18503]
[1744509796310,6.18354,1617.2,1616.8,12.36987]
[1744509796548,9.18314,1617.4,1616.7,1.2591]
[1744509796746,9.18314,1617.4,1616.8,6.18486]
[1744509796747,3.0,1617.4,1616.8,6.18486]
[1744509796935,7.64,1617.5,1617.2,6.18351]
[1744509797141,7.64,1617.5,1617.3,6.1831]
[1744509797660,6.18102,1617.9,1617.5,6.18233]
[1744509797831,6.18087,1617.9,1617.5,6.18233]
[1744509798150,3.0,1617.9,1617.3,6.18311]
[1744509798343,6.18203,1617.6,1617.2,6.18347]
[1744509798651,12.36336,1617.7,1617.3,6.1831]
[1744509798851,6.18161,1617.7,1617.3,6.1831]
[1744509799222,12.36351,1617.7,1617.3,6.1831]
[1744509799636,13.32451,1617.7,1617.3,6.1831]
[1744509800457,7.14261,1617.7,1617.3,6.1831]
[1744509800642,6.88125,1617.8,1617.7,6.18161]
[1744509800643,0.7,1617.8,1617.7,6.18161]
[1744509801221,0.7,1617.8,1617.6,6.18199]
[1744509801451,6.18047,1618.0,1617.5,13.6445]
[1744509801666,6.18099,1617.9,1617.5,13.6445]
[1744509801869,6.1814,1617.8,1617.5,1.28]
[1744509802030,6.18087,1617.9,1617.5,6.18214]
[1744509803262,6.18127,1617.8,1617.4,6.18262]
[1744509803438,6.18127,1617.8,1617.4,12.36516]
[1744509803636,6.18252,1617.5,1616.9,1.858786]
[1744509803824,6.18256,1617.5,1617.1,6.18382]
[1744509804023,6.18218,1617.6,1617.2,6.18336]
[1744509804765,3.9552,1617.7,1617.0,6.18423]
[1744509804939,6.18294,1617.4,1617.0,6.18423]
[1744509805121,6.18241,1617.5,1617.0,6.18429]
[1744509805318,3.9552,1617.7,1617.4,6.18275]
[1744509805523,0.9552,1617.9,1617.4,6.18272]
[1744509805724,6.1815,1617.8,1617.4,6.18272]
[1744509805923,6.18179,1617.7,1617.3,7.42341]
[1744509806177,6.1815,1617.8,1617.3,7.42341]
[1744509806178,6.18153,1617.8,1617.3,1.2403]
[1744509806346,0.9552,1618.1,1617.6,6.18179]
[1744509806668,6.18129,1617.8,1617.3,7.42342]
[1744509806832,12.3637,1617.7,1617.3,7.42342]
[1744509807032,6.18178,1617.7,1617.3,7.42342]
[1744509807474,6.18239,1617.5,1617.1,7.34777]
[1744509808056,6.18239,1617.5,1617.1,6.18387]
[1744509808230,6.18301,1617.4,1617.0,6.926739]
[1744509808430,6.18301,1617.4,1617.0,13.110879]
[1744509808734,6.68301,1617.4,1617.0,13.110879]
[1744509809259,6.68301,1617.4,1617.0,6.926599]
[1744509810260,6.68299,1617.4,1617.0,6.926599]
[1744509811162,0.5,1617.4,1616.9,7.638]
[1744509811364,6.1838,1617.2,1616.9,7.638]
[1744509811863,6.18316,1617.3,1616.9,13.82247]
[1744509812060,6.18316,1617.3,1616.9,20.00696]
[1744509812260,8.5932,1617.9,1617.3,6.18312]
[1744509812467,6.18204,1617.6,1617.3,6.18312]
[1744509812971,6.1829,1617.4,1617.0,7.44569]
[1744509813265,6.1829,1617.4,1617.0,13.62981]
[1744509813464,6.18183,1617.7,1617.3,6.18282]
[1744509813651,6.18215,1617.6,1617.2,6.1834]
[1744509813832,12.36444,1617.6,1617.2,6.1834]
[1744509814359,6.18242,1617.5,1617.1,6.18373]
[1744509814535,6.18303,1617.4,1617.0,7.44585]
[1744509814738,6.18321,1617.3,1617.0,7.44585]
[1744509814936,6.18303,1617.4,1617.0,8.954235]
[1744509815168,6.18303,1617.4,1617.0,15.138325]
[1744509815531,6.18303,1617.4,1617.1,6.18388]
[1744509816862,6.18303,1617.4,1617.0,15.138235]
[1744509817963,7.13759,1617.5,1617.1,6.18383]
[1744509818266,12.365,1617.5,1617.1,7.6975305]
[1744509818563,6.18285,1617.4,1617.1,6.18374]
[1744509818790,12.36508,1617.5,1617.1,6.18374]
[1744509819388,6.18239,1617.5,1617.1,6.18374]
[1744509819976,12.36501,1617.5,1617.1,6.18374]
[1744509820274,6.18239,1617.5,1617.1,12.36745]
[1744509820475,12.36498,1617.5,1617.1,6.18371]
[1744509821383,6.18282,1617.4,1617.1,6.18371]
[1744509821541,6.18345,1617.3,1617.0,1.2616]
[1744509822279,7.13681,1617.7,1617.3,6.1829]
[1744509822481,0.9552,1617.9,1617.5,6.18238]
[1744509822688,6.17948,1618.3,1617.8,7.44253]
[1744509822836,6.17977,1618.2,1617.8,7.44253]
[1744509823037,6.18004,1618.2,1617.8,7.44262]
[1744509823270,6.17945,1618.3,1617.9,6.18083]
[1744509823468,6.17938,1618.3,1617.9,6.18076]
[1744509823789,12.37814,1618.4,1618.0,6.18032]
[1744509824078,6.19896,1618.4,1618.1,6.18005]
[1744509824285,0.02,1618.4,1618.1,6.18005]
[1744509824470,0.02,1618.4,1618.0,6.18024]
[1744509824672,6.19908,1618.4,1618.0,6.18024]
[1744509825281,6.19908,1618.4,1618.0,7.4907716]
[1744509825853,6.17971,1618.2,1617.8,21.22091]
[1744509826853,6.17971,1618.2,1617.8,15.03968]
[1744509827054,6.17971,1618.2,1617.8,21.22067]
[1744509827267,6.17971,1618.2,1617.8,15.03959]
[1744509827471,0.02,1618.4,1618.0,6.18021]
[1744509827741,6.19896,1618.4,1618.0,6.18021]
[1744509828941,6.19896,1618.4,1618.0,7.416288]
[1744509829143,6.19896,1618.4,1618.1,6.18008]
[1744509829791,0.02,1618.4,1618.3,6.17932]
[1744509830469,0.02,1618.4,1618.2,1.2042]
[1744509830641,6.19898,1618.4,1618.0,7.38462]
[1744509830840,12.37827,1618.4,1618.0,7.38462]
[1744509831062,0.02,1618.4,1618.0,7.38444]
[1744509831373,0.02,1618.4,1618.1,12.35979]
[1744509831542,0.02,1618.4,1618.1,6.17988]
[1744509832238,0.02,1618.4,1618.2,6.17969]
[1744509834595,7.15447,1618.4,1617.9,12.25078]
[1744509834814,0.02,1618.4,1618.1,1.1998]
[1744509835092,6.19894,1618.4,1618.1,1.1998]
[1744509835293,12.3781,1618.4,1618.1,1.1998]
[1744509835576,0.02,1618.4,1618.1,1.1998]
[1744509835760,0.02,1618.4,1618.1,13.55976]
[1744509836161,0.02,1618.4,1618.1,7.37978]
[1744509836806,0.02,1618.4,1618.1,8.735699]
[1744509837004,0.02,1618.4,1618.1,14.915599]
[1744509837206,6.17933,1618.3,1618.1,2.555819]
[1744509837372,6.17933,1618.3,1617.9,9.342968]
[1744509837574,6.19927,1618.4,1618.0,6.18043]
[1744509837774,6.19927,1618.4,1618.1,6.18007]
[1744509838100,6.17932,1618.3,1618.0,6.18031]
[1744509838412,6.17932,1618.3,1618.0,1.5523478]
[1744509838867,6.17932,1618.3,1617.9,9.343168]
[1744509839518,12.3589,1618.3,1617.9,9.343168]
[1744509839717,6.18019,1618.1,1617.8,7.597]
[1744509840123,6.18019,1618.1,1617.8,13.77823]
[1744509840269,7.13504,1618.3,1617.9,6.18067]
[1744509840579,6.17954,1618.3,1617.9,12.36134]
[1744509840770,6.19898,1618.4,1618.1,6.17999]
[1744509841575,12.37815,1618.4,1618.0,7.39415]
[1744509841792,6.19898,1618.4,1618.0,7.39415]
[1744509842097,6.19898,1618.4,1618.0,13.57446]
[1744509842302,6.19898,1618.4,1618.0,7.39415]
[1744509842303,12.37815,1618.4,1618.0,7.39415]
[1744509842605,12.37818,1618.4,1618.0,8.9512314]
[1744509843104,6.19898,1618.4,1618.0,15.1315314]
[1744509843301,12.37813,1618.4,1618.0,8.9512314]
[1744509843609,6.17975,1618.2,1617.8,13.7781]
[1744509843815,6.17963,1618.3,1617.9,6.18068]
[1744509844033,12.35918,1618.3,1617.9,6.18068]
[1744509844324,0.02,1618.4,1618.1,6.18003]
[1744509844527,6.19896,1618.4,1618.1,6.18003]
[1744509844696,12.37817,1618.4,1618.0,6.18046]
[1744509845327,12.37828,1618.4,1618.0,12.36078]
[1744509845531,12.37812,1618.4,1618.0,7.416398]
[1744509846537,6.19896,1618.4,1618.0,13.596698]
[1744509846708,0.02,1618.4,1618.1,1.214]
[1744509846909,0.02,1618.4,1618.2,6.17958]
[1744509847117,0.02,1618.4,1618.2,6.17951]
[1744509847316,0.02,1618.4,1618.3,6.797271]
[1744509849236,0.02,1618.4,1618.3,8.011271]
[1744509851309,0.02,1618.4,1618.1,6.18002]
[1744509851541,0.02,1618.4,1618.2,6.17969]
[1744509851729,0.02,1618.4,1618.2,12.35917]
[1744509852039,0.02,1618.4,1618.2,12.35898]
[1744509852239,0.02,1618.4,1618.3,6.17932]
[1744509853331,0.02,1618.4,1618.2,6.17948]
[1744509854241,0.02,1618.4,1618.3,6.17932]
[1744509857016,0.02,1618.4,1618.3,7.33332]
[1744509858014,0.02,1618.4,1618.2,1.235955]
[1744509858219,0.9755,1618.4,1617.9,1.154]
[1744509858439,0.9755,1618.4,1618.1,6.17986]
[1744509859048,7.15449,1618.4,1618.1,6.17986]
[1744509859268,6.17943,1618.3,1618.0,6.18046]
[1744509860244,7.15449,1618.4,1618.0,13.094186]
[1744509860927,0.02,1618.4,1618.1,12.35977]
[1744509861646,0.02,1618.4,1618.0,9.09717612]
[1744509861854,0.02,1618.4,1618.2,6.17948]
[1744509862150,6.19907,1618.4,1618.0,6.913786]
[1744509862332,6.17933,1618.3,1618.0,6.913786]
[1744509862815,12.35898,1618.3,1618.0,0.733446]
[1744509863021,12.35898,1618.3,1617.9,7.33484]
[1744509863356,12.35889,1618.3,1617.9,6.18084]
[1744509863578,0.9545,1618.2,1617.9,12.36148]
[1744509864270,7.15349,1618.4,1618.0,6.18033]
[1744509864473,13.33268,1618.4,1618.0,6.18033]
[1744509864772,6.17933,1618.3,1618.0,6.18033]
[1744509866371,6.17933,1618.3,1618.0,7.416447]
[1744509866569,6.17933,1618.3,1618.0,6.18033]
[1744509867137,0.9745,1618.4,1617.7,7.39997]
[1744509867359,6.1804,1618.1,1617.7,14.91697]
[1744509867531,6.1804,1618.1,1617.7,14.91696]
[1744509867732,6.1804,1618.1,1617.8,6.18122]
[1744509872986,12.36072,1618.1,1617.7,14.91696]
[1744509873279,6.18032,1618.1,1617.7,21.09844]
[1744509873485,6.18032,1618.1,1617.8,6.18118]
[1744509873650,6.17977,1618.2,1617.8,12.36227]
[1744509874179,6.18014,1618.1,1617.8,6.18109]
[1744509874483,12.36044,1618.1,1617.7,17.0887278]
[1744509875484,6.18014,1618.1,1617.7,23.2701678]
[1744509875856,12.35968,1618.2,1617.8,12.36218]
[1744509876059,12.35968,1618.2,1617.8,6.18107]
[1744509876443,6.17978,1618.2,1617.8,13.31311645]
[1744509876642,6.18012,1618.1,1617.8,7.13204645]
[1744509876947,7.13462,1618.1,1617.8,6.18105]
[1744509877577,0.9545,1618.1,1617.8,12.36215]
[1744509877756,6.17978,1618.2,1617.8,12.36215]
[1744509878971,12.3597,1618.2,1617.8,6.18105]
[1744509879175,7.13383,1618.3,1617.7,10.8523678]
[1744509879475,7.13383,1618.3,1618.0,6.18028]
[1744509879876,13.31338,1618.3,1617.9,6.18085]
[1744509880198,7.13383,1618.3,1617.9,6.18085]
[1744509880555,6.1797,1618.2,1617.9,6.18085]
[1744509880895,7.13383,1618.3,1617.9,6.18069]
[1744509881092,7.13383,1618.3,1617.9,6.90728268]
[1744509881826,13.31338,1618.3,1617.9,6.90728268]
[1744509882299,7.13383,1618.3,1617.9,6.90728268]
[1744509882632,7.13383,1618.3,1617.9,13.08792268]
[1744509883232,7.13383,1618.3,1617.9,6.90723268]
[1744509883516,6.199,1618.4,1617.5,1.276]
[1744509883517,6.18156,1617.8,1617.5,1.276]
[1744509883735,6.18195,1617.7,1617.3,7.459]
[1744509883935,6.18259,1617.5,1617.1,13.69589]
[1744509884138,6.18259,1617.5,1617.2,1.369589]
[1744509884596,7.13614,1617.7,1617.2,1.369589]
[1744509884791,0.9545,1617.7,1617.4,6.18259]
[1744509884995,0.9545,1617.7,1617.4,6.18258]
[1744509885233,0.9545,1617.7,1617.3,7.45912]
[1744509885402,6.18233,1617.6,1617.3,2.1588709]
[1744509885600,7.13613,1617.7,1617.3,8.3419409]
[1744509885810,3.0,1617.8,1617.3,2.1588709]
[1744509886087,13.69228,1618.1,1617.7,7.39025]
[1744509886307,6.18028,1618.1,1617.8,6.18122]
[1744509886484,6.18028,1618.1,1617.7,13.57173]
[1744509886691,10.13425,1618.2,1617.8,6.18119]
[1744509886894,7.13425,1618.2,1617.8,12.36223]
[1744509887096,6.17975,1618.2,1617.9,6.18079]
[1744509887988,6.17975,1618.2,1617.8,6.18104]
[1744509889428,6.17938,1618.3,1617.7,2.565873]
[1744509889725,6.17938,1618.3,1617.9,12.36111]
[1744509889917,6.17938,1618.3,1617.9,13.597221]
[1744509890830,17.66648,1618.4,1618.0,12.36079]
[1744509891032,0.02,1618.4,1618.1,1.2685]
[1744509891328,0.02,1618.4,1618.3,6.17932]
[1744509892800,0.02,1618.4,1618.3,9.63110012]
[1744509892995,0.02,1618.4,1618.3,12.51346113]
[1744509896341,0.02,1618.4,1618.3,9.78018101]
[1744509896507,0.02,1618.4,1618.3,14.95882]
[1744509897103,0.02,1618.4,1618.2,13.69051]
[1744509897308,0.02,1618.4,1618.2,7.511]
[1744509897531,0.02,1618.4,1618.2,13.69066]
[1744509897725,0.02,1618.4,1618.3,6.17932]
[1744509897935,0.02,1618.4,1618.3,8.166318]
[1744509898135,0.02,1618.4,1618.3,9.434818]
[1744509900143,0.02,1618.4,1618.3,9.984818]
[1744509900345,0.4034707,1618.9,1618.8,6.17741]
[1744509900556,7e-07,1618.9,1618.8,13.17919012]
[1744509900846,7e-07,1618.9,1618.8,16.47297213]
[1744509901044,7e-07,1618.9,1618.8,16.94600685]
[1744509901421,7e-07,1618.9,1618.8,17.17783158]
[1744509905732,7e-07,1618.9,1618.8,23.24783158]
[1744509909435,7e-07,1618.9,1618.8,20.28272673]
[1744509909659,7e-07,1618.9,1618.8,27.78072673]
[1744509909865,7e-07,1618.9,1618.8,30.74583158]
[1744509912692,0.02,1619.4,1619.3,6.7255]
[1744509912844,0.02,1619.4,1619.3,24.5464]
[1744509914138,0.02,1620.4,1619.3,24.5464]
[1744509914139,0.02,1620.4,1620.2,6.17205]
[1744509914344,0.02,1620.4,1620.1,6.17237]
[1744509914570,0.46297381,1620.8,1620.0,6.17257]
[1744509914771,6.17133,1620.4,1620.0,8.156846]
[1744509914967,6.17133,1620.4,1620.0,14.329496]
[1744509915193,3.0,1620.5,1619.8,6.17323]
[1744509915476,6.17159,1620.4,1620.0,6.1728]
[1744509915778,6.17113,1620.5,1620.0,12.3455]
[1744509915962,12.34241,1620.5,1620.0,12.3455]
[1744509917177,6.17024,1620.7,1620.0,6.17283]
[1744509917353,6.787614,1620.6,1620.2,6.17205]
[1744509917679,6.17136,1620.4,1620.0,6.17269]
[1744509917880,6.17128,1620.5,1620.0,6.17269]
[1744509918041,6.1721,1620.2,1619.9,7.497]
[1744509918240,0.61721,1620.1,1619.9,7.497]
[1744509918446,6.17275,1620.1,1619.9,7.497]
[1744509918647,6.17275,1620.1,1619.7,6.17397]
[1744509918979,6.17251,1620.1,1619.7,6.17398]
[1744509919283,9.17163,1620.4,1619.7,8.7455]
[1744509919446,6.17163,1620.4,1619.7,8.7455]
[1744509919649,0.617163,1620.3,1620.0,6.17281]
[1744509920274,6.788893,1620.3,1619.9,6.17311]
[1744509920577,6.17219,1620.2,1619.7,21.09324]
[1744509920979,6.17219,1620.2,1619.8,12.34689]
[1744509922041,6.17219,1620.2,1619.9,6.17318]
[1744509922347,0.619721,1620.2,1619.9,12.34623]
[1744509922552,6.17171,1620.3,1619.9,6.17305]
[1744509923184,6.17171,1620.3,1619.9,12.34612]
[1744509923478,6.17172,1620.3,1619.9,6.17305]
[1744509923980,6.17172,1620.3,1619.9,6.173]
[1744509924384,6.17227,1620.2,1619.8,6.17354]
[1744509925054,6.17227,1620.2,1619.8,12.34694]
[1744509925581,6.17141,1620.4,1620.0,6.17253]
[1744509925786,3.0,1620.5,1620.1,6.17232]
[1744509925787,6.17106,1620.5,1620.1,6.17232]
[1744509925985,6.17106,1620.5,1620.1,12.34465]
[1744509926353,6.17106,1620.5,1620.1,6.17232]
[1744509926553,6.1706,1620.6,1620.2,6.17192]